fUST/lending_fUST_20250614
["ID","MTS","AMOUNT","RATE_DAILY","PERIOD"]
[365793796,1749916251906,-160.0,0.00022603,2]
[365793797,1749916251915,-160.0,0.00022603,2]
[365793798,1749916251925,-674.10209169,0.00022624,7]
[365793799,1749916251936,-456.64407861,0.00022639,2]
[365793800,1749916251946,-1000.0,0.00022721,2]
[365793801,1749916251956,-674.10209169,0.00022728,7]
[365793802,1749916251965,-460.0,0.00022739,4]
[365793803,1749916251975,-460.0,0.00022739,4]
[365793804,1749916251984,-460.0,0.00022739,4]
[365793805,1749916251994,-460.0,0.00022739,4]
[365793806,1749916252003,-460.0,0.00022739,4]
[365793807,1749916252013,-460.0,0.00022739,4]
[365793808,1749916252022,-460.0,0.00022739,4]
[365793809,1749916252031,-181.7846062,0.00022739,4]
[365793810,1749916252041,-320.0,0.00022739,4]
[365793811,1749916252052,-555.12,0.00022739,4]
[365793812,1749916252062,-460.0,0.00022739,4]
[365793813,1749916252071,-460.0,0.00022739,4]
[365793814,1749916252080,-380.0,0.00022739,4]
[365793815,1749916252089,-398.20765129,0.00022739,4]
[365793816,1749916252100,-460.0,0.00022739,2]
[365793817,1749916252109,-460.0,0.00022739,4]
[365793818,1749916252118,-428.04696269,0.00022739,4]
[365793819,1749916252127,-460.0,0.00022739,4]
[365793820,1749916252136,-460.0,0.00022739,4]
[365793821,1749916252146,-460.0,0.00022739,4]
[365793822,1749916252155,-460.0,0.00022739,4]
[365793823,1749916252164,-339.51490891,0.00022739,4]
[365793824,1749916252174,-460.0,0.00022739,4]
[365793825,1749916252184,-460.0,0.00022739,4]
[365793826,1749916252194,-460.0,0.00022739,4]
[365793827,1749916252203,-460.0,0.00022739,4]
[365793828,1749916252213,-230.0,0.00022739,4]
[365793829,1749916252228,-460.0,0.00022739,4]
[365793830,1749916252247,-460.0,0.00022739,4]
[365793831,1749916252256,-682.77,0.00022739,4]
[365793832,1749916252265,-460.0,0.00022739,4]
[365793833,1749916252275,-460.0,0.00022739,4]
[365793834,1749916252284,-390.0,0.00022739,4]
[365793835,1749916252295,-460.0,0.00022739,4]
[365793836,1749916252306,-382.20325355,0.00022739,4]
[365793837,1749916252316,-460.0,0.00022739,4]
[365793838,1749916252326,-460.0,0.00022739,4]
[365793839,1749916252406,-460.0,0.00022739,4]
[365793840,1749916252417,-460.0,0.00022739,4]
[365793841,1749916252426,-460.0,0.00022739,4]
[365793842,1749916252436,-253.46779028,0.00022739,4]
[365793843,1749916252447,-460.0,0.00022739,4]
[365793844,1749916252457,-173.01264835,0.00022739,4]
[365793845,1749916252466,-460.0,0.00022739,4]
[365793846,1749916252476,-460.0,0.00022739,4]
[365793847,1749916252486,-440.0,0.00022739,4]
[365793848,1749916252496,-460.0,0.00022739,4]
[365793849,1749916252505,-460.0,0.00022739,4]
[365793850,1749916252515,-350.0,0.00022739,4]
[365793851,1749916252525,-460.0,0.00022739,4]
[365793852,1749916252535,-460.0,0.00022739,4]
[365793853,1749916252544,-460.0,0.00022739,4]
[365793854,1749916252556,-460.0,0.00022739,4]
[365793855,1749916252565,-460.0,0.00022739,4]
[365793856,1749916252575,-460.0,0.00022739,4]
[365793857,1749916252585,-460.0,0.00022739,4]
[365793858,1749916252594,-350.0,0.00022739,4]
[365793859,1749916252604,-460.0,0.00022739,4]
[365793860,1749916252614,-176.95288892,0.00022739,4]
[365793861,1749916252623,-340.0,0.00022739,4]
[365793862,1749916252634,-460.0,0.00022739,4]
[365793863,1749916252644,-565.65512492,0.00022739,4]
[365793864,1749916252654,-442.75792014,0.00022739,4]
[365793865,1749916252663,-460.0,0.00022739,4]
[365793866,1749916252673,-460.0,0.00022739,4]
[365793867,1749916252683,-190.0,0.00022739,4]
[365793868,1749916252693,-395.48678114,0.00022739,4]
[365793869,1749916252703,-460.0,0.00022739,4]
[365793870,1749916252713,-460.0,0.00022739,4]
[365793871,1749916252722,-460.0,0.00022739,4]
[365793872,1749916252732,-460.0,0.00022739,4]
[365793873,1749916252741,-460.0,0.00022739,4]
[365793874,1749916252751,-460.0,0.00022739,4]
[365793875,1749916252760,-460.0,0.00022739,4]
[365793876,1749916252771,-460.0,0.00022739,4]
[365793877,1749916252780,-460.0,0.00022739,4]
[365793878,1749916252790,-460.0,0.00022739,4]
[365793879,1749916252800,-460.0,0.00022739,4]
[365793880,1749916252810,-500.0,0.00022739,4]
[365793881,1749916252820,-460.0,0.00022739,4]
[365793882,1749916252829,-460.0,0.00022739,4]
[365793883,1749916252839,-460.0,0.00022739,4]
[365793884,1749916252848,-460.0,0.00022739,4]
[365793885,1749916252858,-460.0,0.00022739,4]
[365793886,1749916252867,-460.0,0.00022739,4]
[365793887,1749916252878,-460.0,0.00022739,4]
[365793888,1749916252887,-1193.65,0.00022739,4]
[365793889,1749916252897,-460.0,0.00022739,4]
[365793890,1749916252907,-460.0,0.00022739,4]
[365793891,1749916252917,-330.0,0.00022739,4]
[365793892,1749916252927,-460.0,0.00022739,4]
[365793893,1749916252937,-330.0,0.00022739,4]
[365793894,1749916252946,-460.0,0.00022739,4]
[365793895,1749916252956,-1721.92,0.00022739,4]
[365793896,1749916252966,-460.0,0.00022739,4]
[365793897,1749916252975,-460.0,0.00022739,4]
[365793898,1749916252985,-850.79,0.00022739,4]
[365793899,1749916252995,-460.0,0.00022739,4]
[365793900,1749916253005,-2378.63,0.00022739,4]
[365793901,1749916253015,-460.0,0.00022739,4]
[365793902,1749916253025,-460.0,0.00022739,4]
[365793903,1749916253035,-460.0,0.00022739,4]
[365793904,1749916253045,-460.0,0.00022739,4]
[365793905,1749916253056,-460.0,0.00022739,4]
[365793906,1749916253066,-460.0,0.00022739,4]
[365793907,1749916253076,-630.26,0.00022739,4]
[365793908,1749916253086,-370.0,0.00022739,4]
[365793909,1749916253096,-460.0,0.00022739,4]
[365793910,1749916253105,-460.0,0.00022739,4]
[365793911,1749916253115,-460.0,0.00022739,4]
[365793912,1749916253125,-1378.04,0.00022739,4]
[365793913,1749916253135,-460.0,0.00022739,4]
[365793914,1749916253145,-460.0,0.00022739,4]
[365793915,1749916253154,-460.0,0.00022739,4]
[365793916,1749916253164,-460.0,0.00022739,4]
[365793917,1749916253174,-460.0,0.00022739,4]
[365793918,1749916253184,-798.04,0.00022739,4]
[365793919,1749916253194,-2926.7,0.00022739,4]
[365793920,1749916253204,-460.0,0.00022739,4]
[365793921,1749916253213,-460.0,0.00022739,4]
[365793922,1749916253225,-460.0,0.00022739,4]
[365793923,1749916253235,-460.0,0.00022739,4]
[365793925,1749916253245,-460.0,0.00022739,4]
[365793926,1749916253255,-460.0,0.00022739,4]
[365793927,1749916253266,-460.0,0.00022739,4]
[365793928,1749916253275,-341.22536101,0.00022739,4]
[365793929,1749916253285,-1184.06,0.00022739,4]
[365793930,1749916253295,-460.0,0.00022739,4]
[365793931,1749916253307,-460.0,0.00022739,4]
[365793932,1749916253318,-460.0,0.00022739,4]
[365793933,1749916253327,-460.0,0.00022739,4]
[365793934,1749916253336,-460.0,0.00022739,4]
[365793935,1749916253345,-460.0,0.00022739,4]
[365793936,1749916253355,-460.0,0.00022739,4]
[365793937,1749916253366,-460.0,0.00022739,4]
[365793938,1749916253375,-460.0,0.00022739,4]
[365793939,1749916253384,-460.0,0.00022739,4]
[365793940,1749916253395,-518.22,0.00022739,4]
[365793941,1749916253404,-500.5111075,0.00022739,4]
[365793942,1749916253413,-460.0,0.00022739,4]
[365793943,1749916253423,-474.84,0.00022739,4]
[365793944,1749916253432,-460.0,0.00022739,4]
[365793945,1749916253442,-282.06916202,0.00022739,4]
[365793946,1749916253452,-340.0,0.00022739,4]
[365793947,1749916253462,-460.0,0.00022739,4]
[365793948,1749916253472,-460.0,0.00022739,4]
[365793949,1749916253482,-460.0,0.00022739,4]
[365793950,1749916253491,-460.0,0.00022739,4]
[365793951,1749916253501,-460.0,0.00022739,4]
[365793952,1749916253575,-460.0,0.00022739,4]
[365793953,1749916253585,-460.0,0.00022739,4]
[365793954,1749916253595,-460.0,0.00022739,4]
[365793955,1749916253604,-460.0,0.00022739,4]
[365793956,1749916253614,-460.0,0.00022739,4]
[365793957,1749916253624,-812.33,0.00022739,4]
[365793958,1749916253633,-460.0,0.00022739,4]
[365793959,1749916253644,-460.0,0.00022739,4]
[365793960,1749916253654,-460.0,0.00022739,4]
[365793961,1749916253665,-382.62766146,0.00022739,4]
[365793962,1749916253675,-460.0,0.00022739,4]
[365793963,1749916253685,-460.0,0.00022739,4]
[365793964,1749916253694,-460.0,0.00022739,4]
[365793965,1749916253704,-500.0,0.00022739,4]
[365793966,1749916253713,-460.0,0.00022739,4]
[365793967,1749916253723,-460.0,0.00022739,4]
[365793968,1749916253732,-460.0,0.00022739,4]
[365793969,1749916253742,-460.0,0.00022739,4]
[365793970,1749916253752,-460.0,0.00022739,4]
[365793971,1749916253762,-460.0,0.00022739,4]
[365793972,1749916253772,-460.0,0.00022739,4]
[365793973,1749916253783,-542.11,0.00022739,4]
[365793974,1749916253794,-460.0,0.00022739,4]
[365793975,1749916253804,-1836.55,0.00022739,4]
[365793976,1749916253814,-460.0,0.00022739,4]
[365793977,1749916253823,-460.0,0.00022739,4]
[365793978,1749916253833,-460.0,0.00022739,4]
[365793979,1749916253842,-599.5,0.00022739,4]
[365793980,1749916253852,-420.0,0.00022739,4]
[365793981,1749916253861,-817.64,0.00022739,4]
[365793982,1749916253871,-340.0,0.00022739,4]
[365793983,1749916253880,-460.0,0.00022739,4]
[365793984,1749916253891,-3264.59,0.00022739,4]
[365793985,1749916253900,-460.0,0.00022739,4]
[365793986,1749916253910,-2695.28,0.00022739,4]
[365793987,1749916253919,-460.0,0.00022739,4]
[365793988,1749916253928,-460.0,0.00022739,4]
[365793989,1749916253938,-159.53405183,0.00022739,4]
[365793990,1749916253947,-621.44,0.00022739,4]
[365793991,1749916253956,-460.0,0.00022739,4]
[365793992,1749916253966,-967.38,0.00022739,4]
[365793993,1749916253976,-460.0,0.00022739,4]
[365793994,1749916253987,-460.0,0.00022739,4]
[365793995,1749916253996,-460.0,0.00022739,4]
[365793996,1749916254006,-460.0,0.00022739,4]
[365793997,1749916254015,-460.0,0.00022739,4]
[365793998,1749916254025,-340.0,0.00022739,4]
[365793999,1749916254035,-460.0,0.00022739,4]
[365794000,1749916254044,-282.99725991,0.00022739,4]
[365794001,1749916254054,-460.0,0.00022739,4]
[365794002,1749916254063,-460.0,0.00022739,4]
[365794003,1749916254072,-460.0,0.00022739,4]
[365794004,1749916254082,-3355.05,0.00022739,4]
[365794005,1749916254091,-1526.62,0.00022739,4]
[365794006,1749916254101,-460.0,0.00022739,4]
[365794007,1749916254111,-460.0,0.00022739,4]
[365794008,1749916254120,-2430.74,0.00022739,4]
[365794009,1749916254130,-460.0,0.00022739,4]
[365794010,1749916254139,-497.82,0.00022739,4]
[365794011,1749916254149,-3536.6,0.00022739,4]
[365794012,1749916254160,-460.0,0.00022739,4]
[365794013,1749916254170,-460.0,0.00022739,4]
[365794014,1749916254180,-460.0,0.00022739,4]
[365794015,1749916254191,-482.37,0.00022739,4]
[365794016,1749916254201,-340.0,0.00022739,4]
[365794017,1749916254211,-320.0,0.00022739,4]
[365794018,1749916254221,-512.18,0.00022739,4]
[365794019,1749916254233,-297.97430761,0.00022739,4]
[365794020,1749916254242,-460.0,0.00022739,4]
[365794021,1749916254252,-460.0,0.00022739,4]
[365794022,1749916254261,-1444.28,0.00022739,4]
[365794023,1749916254274,-370.0,0.00022739,4]
[365794024,1749916254284,-460.0,0.00022739,4]
[365794025,1749916254295,-460.0,0.00022739,4]
[365794026,1749916254311,-460.0,0.00022739,4]
[365794027,1749916254321,-390.0,0.00022739,4]
[365794028,1749916254330,-460.0,0.00022739,4]
[365794029,1749916254340,-460.0,0.00022739,4]
[365794030,1749916254349,-268.58855894,0.00022739,4]
[365794031,1749916254359,-460.0,0.00022739,4]
[365794032,1749916254369,-674.10209169,0.00022831,8]
[365794033,1749916254379,-456.64407861,0.00022913,2]
[365794034,1749916254389,-226.0,0.00022915,2]
[365794035,1749916254399,-674.10209169,0.00022934,8]
[365794036,1749916254408,-226.0,0.00022974,2]
[365794037,1749916254418,-151.0,0.00022982,2]
[365794038,1749916254427,-151.0,0.00022982,2]
[365794039,1749916254436,-152.20402766,0.00022982,2]
[365794040,1749916254446,-1688.0,0.00022982,2]
[365794041,1749916254456,-5000.0,0.00022982,2]
[365794042,1749916254466,-500.0,0.00022982,2]
[365794043,1749916254475,-500.0,0.00022982,2]
[365794044,1749916254485,-500.0,0.00022982,2]
[365794045,1749916254494,-500.0,0.00022982,2]
[365794046,1749916254504,-500.0,0.00022982,2]
[365794047,1749916254514,-500.0,0.00022982,2]
[365794048,1749916254523,-500.0,0.00022982,2]
[365794049,1749916254533,-500.0,0.00022982,2]
[365794050,1749916254542,-500.0,0.00022982,2]
[365794051,1749916254552,-500.0,0.00022982,2]
[365794052,1749916254563,-1000.0,0.00022982,2]
[365794053,1749916254573,-500.0,0.00022982,2]
[365794054,1749916254582,-210.8812712,0.00022982,2]
[365794055,1749916254592,-1000.0,0.00022982,2]
[365794056,1749916254666,-500.0,0.00022982,2]
[365794057,1749916254677,-1000.0,0.00022982,2]
[365794058,1749916254686,-500.0,0.00022982,2]
[365794059,1749916254697,-1000.0,0.00022982,2]
[365794060,1749916254707,-500.0,0.00022982,2]
[365794061,1749916254716,-1000.0,0.00022982,2]
[365794062,1749916254726,-1000.0,0.00022982,2]
[365794063,1749916254736,-500.0,0.00022982,2]
[365794064,1749916254746,-1000.0,0.00022982,2]
[365794065,1749916254755,-500.0,0.00022982,2]
[365794066,1749916254765,-207.4,0.00022982,2]
[365794067,1749916254775,-152.0,0.00023,2]
[365794068,1749916254784,-420.0,0.00023013,4]
[365794069,1749916254793,-151.0,0.00023013,7]
[365794070,1749916254803,-460.0,0.00023013,4]
[365794071,1749916254812,-460.0,0.00023013,4]
[365794072,1749916254821,-460.0,0.00023013,4]
[365794073,1749916254831,-460.0,0.00023013,4]
[365794074,1749916254840,-460.0,0.00023013,4]
[365794075,1749916254850,-555.12,0.00023013,4]
[365794076,1749916254859,-324.66182497,0.00023013,4]
[365794077,1749916254868,-460.0,0.00023013,2]
[365794078,1749916254878,-460.0,0.00023013,4]
[365794079,1749916254887,-460.0,0.00023013,4]
[365794080,1749916254896,-460.0,0.00023013,4]
[365794081,1749916254907,-380.0,0.00023013,4]
[365794082,1749916254916,-460.0,0.00023013,4]
[365794083,1749916254925,-460.0,0.00023013,4]
[365794084,1749916254934,-460.0,0.00023013,4]
[365794085,1749916254943,-460.0,0.00023013,4]
[365794086,1749916254954,-260.42168222,0.00023013,4]
[365794087,1749916254963,-460.0,0.00023013,4]
[365794088,1749916254973,-557.27772423,0.00023013,4]
[365794089,1749916254983,-682.77,0.00023013,4]
[365794090,1749916254994,-460.0,0.00023013,4]
[365794091,1749916255005,-460.0,0.00023013,4]
[365794092,1749916255015,-460.0,0.00023013,4]
[365794093,1749916255025,-340.0,0.00023013,4]
[365794094,1749916255036,-460.0,0.00023013,4]
[365794095,1749916255045,-460.0,0.00023013,4]
[365794096,1749916255055,-460.0,0.00023013,4]
[365794097,1749916255064,-310.0,0.00023013,4]
[365794098,1749916255074,-340.0,0.00023013,4]
[365794099,1749916255084,-460.0,0.00023013,4]
[365794100,1749916255093,-460.0,0.00023013,4]
[365794101,1749916255103,-151.56858156,0.00023013,4]
[365794102,1749916255112,-460.0,0.00023013,4]
[365794103,1749916255132,-460.0,0.00023013,4]
[365794104,1749916255149,-460.0,0.00023013,4]
[365794105,1749916255167,-460.0,0.00023013,4]
[365794106,1749916255186,-460.0,0.00023013,4]
[365794107,1749916255205,-460.0,0.00023013,4]
[365794108,1749916255222,-341.45533301,0.00023013,4]
[365794109,1749916255239,-460.0,0.00023013,4]
[365794110,1749916255253,-460.0,0.00023013,4]
[365794111,1749916255272,-460.0,0.00023013,4]
[365794112,1749916255291,-460.0,0.00023013,4]
[365794113,1749916255310,-460.0,0.00023013,4]
[365794114,1749916255323,-460.0,0.00023013,4]
[365794115,1749916255342,-460.0,0.00023013,4]
[365794116,1749916255356,-460.0,0.00023013,4]
[365794117,1749916255371,-460.0,0.00023013,4]
[365794118,1749916255385,-460.0,0.00023013,4]
[365794119,1749916255399,-460.0,0.00023013,4]
[365794120,1749916255414,-380.0,0.00023013,4]
[365794121,1749916255429,-310.0,0.00023013,4]
[365794122,1749916255444,-460.0,0.00023013,4]
[365794123,1749916255459,-460.0,0.00023013,4]
[365794124,1749916255473,-510.10853906,0.00023013,4]
[365794125,1749916255488,-500.0,0.00023013,4]
[365794126,1749916255502,-460.0,0.00023013,4]
[365794127,1749916255517,-460.0,0.00023013,4]
[365794128,1749916255532,-460.0,0.00023013,4]
[365794129,1749916255547,-460.0,0.00023013,4]
[365794130,1749916255563,-460.0,0.00023013,4]
[365794131,1749916255577,-460.0,0.00023013,4]
[365794132,1749916255593,-460.0,0.00023013,4]
[365794133,1749916255609,-1193.65,0.00023013,4]
[365794134,1749916255623,-460.0,0.00023013,4]
[365794135,1749916255638,-229.64,0.00023013,4]
[365794136,1749916255652,-460.0,0.00023013,4]
[365794137,1749916255667,-460.0,0.00023013,4]
[365794138,1749916255681,-1721.92,0.00023013,4]
[365794139,1749916255695,-460.0,0.00023013,4]
[365794140,1749916255710,-460.0,0.00023013,4]
[365794141,1749916255725,-850.79,0.00023013,4]
[365794142,1749916255739,-460.0,0.00023013,4]
[365794143,1749916255754,-2378.63,0.00023013,4]
[365794144,1749916255769,-310.0,0.00023013,4]
[365794145,1749916255783,-320.0,0.00023013,4]
[365794146,1749916255798,-460.0,0.00023013,4]
[365794147,1749916255813,-460.0,0.00023013,4]
[365794148,1749916255828,-460.0,0.00023013,4]
[365794149,1749916255842,-460.0,0.00023013,4]
[365794150,1749916255858,-630.26,0.00023013,4]
[365794151,1749916255957,-460.0,0.00023013,4]
[365794152,1749916255967,-460.0,0.00023013,4]
[365794153,1749916255978,-1378.04,0.00023013,4]
[365794154,1749916255987,-460.0,0.00023013,4]
[365794155,1749916255998,-460.0,0.00023013,4]
[365794156,1749916256008,-460.0,0.00023013,4]
[365794157,1749916256017,-460.0,0.00023013,4]
[365794158,1749916256028,-798.04,0.00023013,4]
[365794159,1749916256037,-460.0,0.00023013,4]
[365794160,1749916256047,-2926.7,0.00023013,4]
[365794161,1749916256057,-460.0,0.00023013,4]
[365794162,1749916256066,-460.0,0.00023013,4]
[365794163,1749916256077,-460.0,0.00023013,4]
[365794164,1749916256087,-460.0,0.00023013,4]
[365794165,1749916256097,-460.0,0.00023013,4]
[365794166,1749916256107,-460.0,0.00023013,4]
[365794167,1749916256117,-460.0,0.00023013,4]
[365794168,1749916256127,-1184.06,0.00023013,4]
[365794169,1749916256136,-460.0,0.00023013,4]
[365794170,1749916256146,-460.0,0.00023013,4]
[365794171,1749916256155,-460.0,0.00023013,4]
[365794172,1749916256165,-460.0,0.00023013,4]
[365794173,1749916256174,-460.0,0.00023013,4]
[365794174,1749916256184,-460.0,0.00023013,4]
[365794175,1749916256193,-460.0,0.00023013,4]
[365794176,1749916256203,-460.0,0.00023013,4]
[365794177,1749916256213,-460.0,0.00023013,4]
[365794178,1749916256226,-460.0,0.00023013,4]
[365794179,1749916256236,-518.22,0.00023013,4]
[365794180,1749916256245,-460.0,0.00023013,4]
[365794181,1749916256254,-474.84,0.00023013,4]
[365794182,1749916256266,-460.0,0.00023013,4]
[365794183,1749916256276,-310.0,0.00023013,4]
[365794184,1749916256285,-440.0,0.00023013,4]
[365794185,1749916256294,-460.0,0.00023013,4]
[365794186,1749916256307,-460.0,0.00023013,4]
[365794187,1749916256317,-460.0,0.00023013,4]
[365794188,1749916256327,-460.0,0.00023013,4]
[365794189,1749916256336,-460.0,0.00023013,4]
[365794190,1749916256345,-460.0,0.00023013,4]
[365794191,1749916256354,-460.0,0.00023013,4]
[365794192,1749916256364,-320.0,0.00023013,4]
[365794193,1749916256374,-812.33,0.00023013,4]
[365794194,1749916256384,-460.0,0.00023013,4]
[365794195,1749916256394,-460.0,0.00023013,4]
[365794196,1749916256404,-460.0,0.00023013,4]
[365794197,1749916256414,-460.0,0.00023013,4]
[365794198,1749916256424,-460.0,0.00023013,4]
[365794199,1749916256434,-500.0,0.00023013,4]
[365794200,1749916256443,-460.0,0.00023013,4]
[365794201,1749916256453,-460.0,0.00023013,4]
[365794202,1749916256463,-460.0,0.00023013,4]
[365794203,1749916256473,-460.0,0.00023013,4]
[365794204,1749916256482,-460.0,0.00023013,4]
[365794205,1749916256492,-460.0,0.00023013,4]
[365794206,1749916256502,-460.0,0.00023013,4]
[365794207,1749916256512,-460.0,0.00023013,4]
[365794208,1749916256522,-542.11,0.00023013,4]
[365794209,1749916256532,-460.0,0.00023013,4]
[365794210,1749916256542,-1836.55,0.00023013,4]
[365794211,1749916256552,-460.0,0.00023013,4]
[365794212,1749916256562,-460.0,0.00023013,4]
[365794213,1749916256573,-460.0,0.00023013,4]
[365794214,1749916256583,-599.5,0.00023013,4]
[365794215,1749916256593,-817.64,0.00023013,4]
[365794216,1749916256602,-356.61,0.00023013,4]
[365794217,1749916256612,-3264.59,0.00023013,4]
[365794218,1749916256623,-460.0,0.00023013,4]
[365794219,1749916256632,-2695.28,0.00023013,4]
[365794220,1749916256642,-460.0,0.00023013,4]
[365794221,1749916256652,-460.0,0.00023013,4]
[365794222,1749916256662,-621.44,0.00023013,4]
[365794223,1749916256672,-460.0,0.00023013,4]
[365794224,1749916256683,-967.38,0.00023013,4]
[365794225,1749916256693,-310.0,0.00023013,4]
[365794226,1749916256703,-460.0,0.00023013,4]
[365794227,1749916256712,-460.0,0.00023013,4]
[365794228,1749916256722,-460.0,0.00023013,4]
[365794229,1749916256731,-280.0,0.00023013,4]
[365794230,1749916256740,-460.0,0.00023013,4]
[365794231,1749916256749,-460.0,0.00023013,4]
[365794232,1749916256759,-460.0,0.00023013,4]
[365794233,1749916256768,-460.0,0.00023013,4]
[365794234,1749916256777,-3355.05,0.00023013,4]
[365794235,1749916256787,-1526.62,0.00023013,4]
[365794236,1749916256796,-460.0,0.00023013,4]
[365794237,1749916256807,-460.0,0.00023013,4]
[365794238,1749916256816,-2430.74,0.00023013,4]
[365794239,1749916256825,-324.42737698,0.00023013,4]
[365794240,1749916256834,-497.82,0.00023013,4]
[365794241,1749916256843,-3536.6,0.00023013,4]
[365794242,1749916256853,-460.0,0.00023013,4]
[365794243,1749916256863,-460.0,0.00023013,4]
[365794244,1749916256872,-460.0,0.00023013,4]
[365794245,1749916256882,-482.37,0.00023013,4]
[365794246,1749916256891,-512.18,0.00023013,4]
[365794247,1749916256900,-424.6511445,0.00023013,4]
[365794248,1749916256909,-460.0,0.00023013,4]
[365794249,1749916256919,-1444.28,0.00023013,4]
[365794250,1749916256929,-460.0,0.00023013,4]
[365794251,1749916256938,-243.81856176,0.00023013,4]
[365794252,1749916256948,-460.0,0.00023013,4]
[365794253,1749916256958,-460.0,0.00023013,4]
[365794254,1749916256967,-460.0,0.00023013,4]
[365794255,1749916256978,-460.0,0.00023013,4]
[365794256,1749916256987,-502.50967136,0.00023021,2]
[365794257,1749916256996,-1000.0,0.00023021,2]
[365794258,1749916257006,-501.16145131,0.00023021,2]
[365794259,1749916257015,-1000.0,0.00023021,2]
[365794260,1749916257024,-1750.45600004,0.00023037,2]
[365794261,1749916257035,-674.10209169,0.00023038,8]
[365794262,1749916257046,-226.0,0.00023087,2]
[365794263,1749916257057,-942.07,0.000231,7]
[365794264,1749916257066,-58425.53,0.000231,2]
[365794265,1749916257142,-674.10209169,0.00023141,8]
[365794266,1749916257151,-337.0,0.00023175,2]
[365794267,1749916257160,-226.0,0.00023198,2]
[365794268,1749916257170,-445.945512,0.000232,7]
[365794269,1749916257180,-445.945512,0.000232,7]
[365794270,1749916257189,-29807.49913157,0.000232,7]
[365794271,1749916257350,-12785.51845315,0.000232,7]
[365794272,1749916257362,-2134.81876697,0.000232,7]
[365794273,1749916257374,-414.13945403,0.000232,7]
[365794274,1749916257384,-968.28113904,0.000232,7]
[365794276,1749916258601,-500.0,0.00021203,2]
[365794277,1749916258611,-500.0,0.00021203,2]
[365794278,1749916258621,-609.75,0.00021203,2]
[365794279,1749916258631,-500.0,0.00021203,2]
[365794280,1749916258642,-455.49273363,0.00021203,2]
[365794281,1749916258652,-500.0,0.00021203,2]
[365794282,1749916258662,-500.0,0.00021203,2]
[365794283,1749916258671,-205.03908759,0.00021203,2]
[365794284,1749916258682,-184.32483495,0.00021203,2]
[365794285,1749916258692,-500.0,0.00021203,2]
[365794286,1749916258701,-500.0,0.00021203,2]
[365794287,1749916258711,-500.0,0.00021203,2]
[365794288,1749916258720,-500.0,0.00021203,2]
[365794289,1749916258730,-500.0,0.00021203,2]
[365794290,1749916258739,-500.0,0.00021203,2]
[365794291,1749916258749,-500.0,0.00021203,2]
[365794292,1749916258759,-500.0,0.00021203,2]
[365794293,1749916258769,-500.0,0.00021203,2]
[365794294,1749916258778,-500.0,0.00021203,2]
[365794295,1749916258787,-500.0,0.00021203,2]
[365794296,1749916258796,-472.81906706,0.00021203,2]
[365794297,1749916258806,-500.0,0.00021203,2]